Cogmind - Beta 9.1 @@@ ROGUE MODE // 2019.11.07 @ 01:13:13 Player: cptwinky Result: Destroyed by as-03493 with Assembled Blade Performance ------------- Evolutions (0) 0 Regions Visited (4) 800 Robots Destroyed (21) 105 Value Destroyed (321) 321 Prototype IDs (3) 60 Alien Tech Used (0) 0 Bonus (21) 21 TOTAL SCORE: 1307 Bonus ------- Follower Combat Kills 21 Cogmind --------- Core Integrity 0/250 Matter 300/300 Energy 100/100 System Corruption 5% Temperature Cool (0) Location -9/Mines Parts ------- Power (1) Propulsion (2) Wheel Utility (2) High-capacity Storage Unit Weapon (2) Inventory (12) Light Ion Engine Medium Storage Unit Medium Storage Unit High-capacity Matter Pod (200) Transport Network Coupler Peak State ------------ Power Reinforced Ion Engine Propulsion Light Treads Wheel Utility High-capacity Storage Unit Hardened Light Armor Plating Weapon Light Assault Rifle Mining Laser Inventory Light Ion Engine Light Treads Medium Storage Unit Medium Storage Unit High-capacity Matter Pod Transport Network Coupler [Rating: 9] Favorites ----------- Power Ion Engine Engine Ion Engine Propulsion Light Treads Treads Light Treads Wheel Compact Wheel Utility Small Storage Unit Device Tractor Beam Storage Small Storage Unit Protection Light Armor Plating Weapon EM Pulse Gun Energy Gun EM Pulse Gun Ballistic Gun Light Assault Rifle Special Weapon Mining Laser Build | -11 -10 -10 -10 -9 ------- Run | Scr Mat Min Exi Min Slots Evolved . | . . . . . Power . | . . . . . Propulsion . | . . . . . Utility . | . . . . . Weapon . | . . . . . Parts Attached 28 | 9 5 7 1 6 Power 4 | 2 . 1 . 1 Engine 4 | 2 . 1 . 1 Core . | . . . . . Reactor . | . . . . . Propulsion 10 | 3 3 1 . 3 Treads 4 | 2 1 . . 1 Leg . | . . . . . Wheel 6 | 1 2 1 . 2 Hover . | . . . . . Flight . | . . . . . Utility 7 | 2 2 1 1 1 Device 1 | 1 . . . . Storage 4 | 1 2 . 1 . Processor . | . . . . . Hackware . | . . . . . Protection 2 | . . 1 . 1 Artifact . | . . . . . Weapon 7 | 2 . 4 . 1 Energy Gun 4 | 2 . 2 . . Energy Cannon . | . . . . . Ballistic Gun 1 | . . . . 1 Ballistic Cannon . | . . . . . Launcher . | . . . . . Special Weapon 2 | . . 2 . . Impact Weapon . | . . . . . Slashing Weapon . | . . . . . Piercing Weapon . | . . . . . Special Melee Weapon . | . . . . . Unidentified Prototypes . | . . . . . Parts Lost 14 | . . 6 . 8 Power 2 | . . 1 . 1 Propulsion 4 | . . 1 . 3 Utility 1 | . . . . 1 Weapon 7 | . . 4 . 3 Highest Loss Streak 6 | . . 6 . 6 Average Slot Usage (%) 95 | . 100 97 100 83 Engine 13 | . 14 13 14 13 Treads 14 | . 14 14 14 18 Wheel 12 | . 13 13 14 9 Storage 17 | . 25 16 14 14 Protection 9 | . . 11 14 11 Energy Gun 16 | . 28 22 . . Ballistic Gun 1 | . . . . 8 Special Weapon 6 | . . 3 28 7 Naked Turns . | . . . . . Heaviest Build 49 | 14 25 25 40 49 Greatest Support 40 | 40 40 20 10 40 Greatest Overweight (x) 4 | 2 1 1 3 4 Average Overweight (x) . | . . . 1 2 Largest Inventory Capacity 12 | 6 12 12 12 12 Average Capacity 6 | 5 10 8 9 12 Most Carried 11 | 6 8 11 5 7 Average Carried 6 | 5 7 6 3 5 Final Capacity 12 | 6 12 8 12 12 Final Carried 8 | 6 8 3 5 5 Class Distribution -------------------- 99% | Mutant Dominant Class ---------------- Mutant | -10/Materials Mutant | -10/Mines Mutant | -10/Exiles Mutant | -9/Mines Resources | -11 -10 -10 -10 -9 ----------- Run | Scr Mat Min Exi Min Matter Collected 487 | 277 63 35 40 72 Remotely 113 | 113 . . . . Salvage Created 550 | 61 435 3 . 51 Parts 30 | 2 28 . . . Haulers Intercepted 2 | . 2 . . . Recyclers Shooed . | . . . . . Parts Field Recycled . | . . . . . Retrieved Matter . | . . . . . Parts Self-Destructed . | . . . . . Prevented . | . . . . . Kills | -11 -10 -10 -10 -9 ------- Run | Scr Mat Min Exi Min Combat Hostiles Destroyed 13 | . 7 3 . 3 Melee 1 | . . . . 1 Guns 10 | . 7 1 . 2 Cannons 2 | . . 2 . . Classes Destroyed 8 | 1 6 . . 1 Worker 1 | . 1 . . . Hauler 2 | . 2 . . . Recycler 1 | 1 . . . . Operator 1 | . 1 . . . Watcher 3 | . 3 . . . Swarmer 6 | . 3 3 . . Grunt 4 | . 4 . . . Assembled 3 | . . . . 3 Best Kill Streak 8 | 1 8 3 . 2 Combat Bots Only 3 | . 3 3 . 2 Max Kills in Single Turn 2 | 1 2 1 . 1 Gunslinging 1 | . 1 . . . Exploded . | . . . . . Melee 1 | . . . . 1 Uniques/NPCs Destroyed . | . . . . . Combat | -11 -10 -10 -10 -9 -------- Run | Scr Mat Min Exi Min Damage Taken 1378 | . 212 311 . 855 Core 268 | . 54 40 . 174 Absorbed by Shields . | . . . . . Core Remaining (%) 100 | 100 . . . . Volleys Fired 72 | 3 32 10 . 27 Largest 2 | 2 2 2 . 1 Hottest 140 | 80 80 140 . 20 Shots Fired 114 | 6 64 17 . 27 Gun 110 | 6 64 13 . 27 Cannon . | . . . . . Launcher . | . . . . . Special 4 | . . 4 . . Kinetic 27 | . . . . 27 Thermal 9 | . . 9 . . Explosive . | . . . . . Electromagnetic 78 | 6 64 8 . . Robot Hit Streak 9 | 2 9 5 . 7 Robot Miss Streak 3 | 3 2 3 . 2 Penetration Max . | . . . . . Secondary Targets 2 | . 1 1 . . Max Gunslinging Chain 1 | . 1 1 . . Shots Hit Robots 74 | 2 41 10 . 21 Core Hits 38 | 1 18 3 . 16 Critical Hits . | . . . . . Critical Kills . | . . . . . Critical Parts Destroyed . | . . . . . Melee Attacks . | . . . . . Impact . | . . . . . Slashing . | . . . . . Piercing . | . . . . . Sneak Attacks . | . . . . . Combat Hostiles . | . . . . . Follow-up Attacks . | . . . . . Damage Inflicted 1079 | 28 567 224 . 260 Guns 851 | 28 547 84 . 192 Cannons . | . . . . . Explosions 108 | . 20 88 . . Melee . | . . . . . Ramming 68 | . . . . 68 Kinetic 192 | . . . . 192 Thermal 206 | . 20 186 . . Explosive . | . . . . . Electromagnetic 613 | 28 547 38 . . Impact . | . . . . . Slashing . | . . . . . Piercing . | . . . . . Highest Corruption 5 | . . . . 5 Average Corruption 4 | . . . . 4 Corruption Purged . | . . . . . Overload Shots . | . . . . . Overflow Damage 13 | . . 13 . . Projectiles . | . . . . . Explosions 13 | . . 13 . . Melee . | . . . . . Knockbacks . | . . . . . Impact . | . . . . . Kinetic . | . . . . . Secondary . | . . . . . Self-Inflicted Damage 24 | . . . . 24 Shots . | . . . . . Rammed 19 | . . . . 19 Targets Rammed 19 | . . . . 19 Kicked . | . . . . . Crushed . | . . . . . Highest Temperature 222 | 54 222 176 . 75 Average Temperature 69 | 28 77 99 . 33 Received Heat Transfer 296 | . 36 . . 260 Siege Activations . | . . . . . Robots Corrupted . | . . . . . Combat Hostiles . | . . . . . Parts Fried 4 | . 4 . . . Impact Corruptions . | . . . . . Robots Melted . | . . . . . Combat Hostiles . | . . . . . Parts Melted . | . . . . . Heat Transferred 400 | . 50 350 . . Parts Sabotaged . | . . . . . Parts Stolen . | . . . . . Parts Stripped . | . . . . . Power Chain Reactions 1 | . 1 . . . Missiles Intercepted . | . . . . . Alert | -11 -10 -10 -10 -9 ------- Run | Scr Mat Min Exi Min Peak Influence 319 | 5 319 124 . 83 Average Influence 10 | . 141 81 . 32 Maximum Alert Level 1 | . 1 . . . Low Security (%) 98 | . . . . . Level 1 1 | . . . . . Level 2 . | . . . . . Level 3 . | . . . . . Level 4 . | . . . . . Level 5 . | . . . . . High Security . | . . . . . Max Security . | . . . . . Squads Dispatched 2 | . 2 . . . Investigation 1 | . 1 . . . Extermination . | . . . . . Reinforcement 1 | . 1 . . . Assault . | . . . . . Garrison . | . . . . . Intercept . | . . . . . Construction Impeded . | . . . . . Haulers Reinforced . | . . . . . Stealth | -11 -10 -10 -10 -9 --------- Run | Scr Mat Min Exi Min Distress Signals 1 | . . . . 1 Communications Jammed . | . . . . . Distress Signals . | . . . . . Times Spotted 33 | . 12 3 . 18 Peak Tracking Total 7 | . 3 3 . 7 Tactical Retreats 5 | . 1 . . 4 Traps | -11 -10 -10 -10 -9 ------- Run | Scr Mat Min Exi Min Traps Triggered . | . . . . . Indirectly . | . . . . . Trap Hack Attempts . | . . . . . Triggered . | . . . . . Disarmed . | . . . . . Reprogrammed . | . . . . . Reused . | . . . . . Traps Extracted . | . . . . . Installed . | . . . . . Triggered . | . . . . . Machines | -11 -10 -10 -10 -9 ---------- Run | Scr Mat Min Exi Min Machines Disabled 5 | . 1 4 . . Max in Single Turn 4 | . 1 4 . . Machines Sabotaged . | . . . . . Garrisons Compromised . | . . . . . Overloaded Fab Kills . | . . . . . Fab Network Shutdowns . | . . . . . Hacking | -11 -10 -10 -10 -9 --------- Run | Scr Mat Min Exi Min Machines Accessed 5 | . 4 . 1 . Terminals 3 | . 3 . . . Fabricators . | . . . . . Repair Stations . | . . . . . Recycling Units 1 | . 1 . . . Scanalyzers . | . . . . . Garrison Access . | . . . . . Total Hacks 15 | . 14 . 1 . Successful 4 | . 3 . 1 . Failed 11 | . 11 . . . Catastrophic 2 | . 2 . . . Database Lockouts . | . . . . . Manual 10 | . 10 . . . Terminals 11 | . 11 . . . Fabricators . | . . . . . Repair Stations . | . . . . . Recycling Units 3 | . 3 . . . Scanalyzers . | . . . . . Garrison Access . | . . . . . Terminal Hacks 3 | . 2 . 1 . Record 1 | . . . 1 . Robot Analysis 1 | . 1 . . . Prototype ID Bank 1 | . 1 . . . Fabricator Hacks . | . . . . . Repair Station Hacks . | . . . . . Recycling Unit Hacks . | . . . . . Scanalyzer . | . . . . . Garrison Access Hacks . | . . . . . Unauthorized Hacks 2 | . 2 . . . Terminals . | . . . . . Fabricators . | . . . . . Repair Stations . | . . . . . Recycling Units 1 | . 1 . . . Tunnel 1 | . 1 . . . Scanalyzers . | . . . . . Garrison Access . | . . . . . Data Cores Recovered 1 | . 1 . . . Used . | . . . . . Hacking Detections 4 | . 4 . . . Full Trace Events 2 | . 2 . . . Feedback Events . | . . . . . Feedback Blocked . | . . . . . Robot Schematics Acquired . | . . . . . Robots Built . | . . . . . Matter . | . . . . . Time . | . . . . . Total Robot Build Rating . | . . . . . Part Schematics Acquired . | . . . . . Parts Built . | . . . . . Matter . | . . . . . Time . | . . . . . Total Part Build Rating . | . . . . . Parts Repaired . | . . . . . Time . | . . . . . Parts Recycled . | . . . . . Recycled Matter . | . . . . . Retrieved Matter . | . . . . . Retrieved Components . | . . . . . Parts Scanalyzed . | . . . . . Part Schematics Acquired . | . . . . . Parts Damaged . | . . . . . Bothacking | -11 -10 -10 -10 -9 ------------ Run | Scr Mat Min Exi Min Used RIF Installer . | . . . . . Robots Hacked . | . . . . . Non-combat . | . . . . . Combat . | . . . . . Robot Hacks Applied . | . . . . . Relay Couplers Released . | . . . . . Robots Rewired . | . . . . . Allies Hacked . | . . . . . Hacks Repelled . | . . . . . Allies | -11 -10 -10 -10 -9 -------- Run | Scr Mat Min Exi Min Total Allies 2 | . . . . 2 Largest Group 2 | . . . . 2 Highest-Rated Group 42 | . . . . 42 Highest-Rated Ally 31 | . . . . 31 Total Orders . | . . . . . Ally Attacks 15 | . . . . 15 Total Damage 213 | . . . . 213 Kills 6 | . . . . 6 Allies Corrupted . | . . . . . Allies Melted . | . . . . . Intel | -11 -10 -10 -10 -9 ------- Run | Scr Mat Min Exi Min Robot Analysis Total 1 | . 1 . . . Derelict Logs Recovered 1 | . . 1 . . Drone Launches . | . . . . . Drone Recoveries . | . . . . . Exploration | -11 -10 -10 -10 -9 ------------- Run | Scr Mat Min Exi Min Turns Passed 11367 | 9784 360 745 197 281 Spaces Moved 1545 | 391 190 651 203 110 Core 13 | 13 . . . . Treads 447 | 323 87 1 . 36 Legs . | . . . . . Wheels 1085 | 55 103 650 203 74 Hover . | . . . . . Flight . | . . . . . Fastest Speed 50 | 50 90 90 90 110 Average Speed 119 | 148 124 105 96 137 Slowest Speed 200 | 160 180 160 110 200 Overloaded Moves . | . . . . . Propulsion Burnouts . | . . . . . Robots Hopped . | . . . . . Cave-ins Triggered . | . . . . . Exploration Rate (%) 57 | 79 39 98 54 18 Regions Visited 4 Branch Regions 3 Pre-discovered Areas 3 | . 1 1 1 . Known Exits Taken . | . . . . . Unknown Exits Taken 4 | 1 1 1 1 . Scrap Searched 3 | . . 2 . 1 Spaces Dug . | . . . . . Terrain Destroyed 17 | . 4 13 . . Melee . | . . . . . Projectile 1 | . . 1 . . AOE 16 | . 4 12 . . Actions | -11 -10 -10 -10 -9 --------- Run | Scr Mat Min Exi Min Total 10925 | 9583 249 684 204 205 Wait 9243 | 9175 20 8 . 40 Move 1541 | 390 189 650 202 110 Hop . | . . . . . Pick Up 15 | 6 1 5 1 2 Fast Attach 9 | 7 1 . . 1 Attach 8 | . . 6 . 2 Detach 1 | . 1 . . . Swap 11 | 2 4 1 1 3 Drop 6 | . 1 4 . 1 Fire 72 | 3 32 10 . 27 Melee . | . . . . . Ram 15 | . . . . 15 Kick . | . . . . . Crush 4 | . . . . 4 Escape Stasis . | . . . . . Rewire . | . . . . . Trap . | . . . . . Miscellaneous . | . . . . . Route ------- -11/Scrapyard -10/Materials -10/Mines (discovered 3 exits: [*Mat x2] / *Exi) -10/Exiles -9/Mines (discovered 1 exit: [*Mat]) History --------- Turn | Location | Event 3 | -11/Scrapyard | Discovered new exit (range 15) 9785 | -11/Scrapyard | Entered Materials 9786 | -10/Materials | Build established: Mutant 9914 | -10/Materials | Discovered new exit (range 16) 10145 | -10/Materials | Entered Mines 10275 | -10/Mines | Discovered new exit (range 11) 10456 | -10/Mines | Deemed a non-threat by the Exiles lab entrance 10456 | -10/Mines | Discovered new exit (range 5) 10639 | -10/Mines | Learned location of Storage (-7) 10695 | -10/Mines | Discovered new exit (range 16) 10773 | -10/Mines | Lost 6 parts (1p1n4w) 10890 | -10/Mines | Entered Exiles 10912 | -10/Exiles | Met 8R-AWN 10927 | -10/Exiles | Met EX-HEX 10973 | -10/Exiles | Met EX-DEC 10990 | -10/Exiles | Learned location of Zion (-6) 11072 | -10/Exiles | Discovered new exit (range 14) 11087 | -10/Exiles | Entered Mines 11088 | -9/Mines | Assembled infested the area 11112 | -9/Mines | Discovered new exit (range 14) 11338 | -9/Mines | Core integrity fell below 50% 11359 | -9/Mines | Core integrity fell below 20% 11368 | -9/Mines | Destroyed by as-03493 with Assembled Blade Last Messages --------------- 11337_ K-01 Serf destroyed. 11337_ Slammed into as-76921. 11339_ Slammed into as-03493. 11344_ Lgt. Treads destroyed. 11346_ Acquired 10 matter. 11346_ Slammed into as-03493. 11347_ Rnf. Ion Engine destroyed. 11347_ Slammed into as-03493. 11349_ Slammed into as-76921. 11351_ Destabilizing: System corrupted (+2). 11352_ Slammed into as-76921. 11355_ Wheel destroyed. 11355_ System corrupted by crushing effect (+3). 11355_ R-06 Scavenger collects Wheel. 11356_ Slammed into as-76921. 11356_ as-76921 destroyed. 11357_ Slammed into as-03493. 11359_ Destabilizing: Short circuit. 11359_ Wheel permanently disabled. 11365_ Slammed into as-03493. Map ----- +----------------------------------------------------+ | | | | | | | | | | | | | | | | | | | | | | | | | | | | | | | | | ?????????????????????????????????????????????????? | | ?????????????????????????????????????????????????? | | ?????????????????????????????????????????????????? | | ???####??????????########????????????????????????? | | ??## ###????????# """ ###??????????????????????? | | ?## ##???????# """ %%#??????????????????????? | | ## #???????# """ #%#??????????????????????? | | ######### % #%#??????????????????????? | | % !%% #=#??????????????????????? | | =% * < #@#??????????????????????? | | ######### #a#??????????????????????? | | ##???????# #%#??????????????????????? | | ##????????########=#??????????????????????? | | #????????????????#!#??????????????????????? | | ##????????????????#%#??????????????????????? | | ##???????????#######%#??????????????????????? | | ##????????????#*%%%%%%#??????????????????????? | | ####?????????????#%#######??????????????????????? | | #????????????????#%#????????????????????????????? | | #????????????????# #????????????????????????????? | | #????????????????#%#????????????????????????????? | | #????????????????#*#????????????????????????????? | | #????????????????%%%????????????????????????????? | | ##????????????????*!%????????????????????????????? | | #????????????????%=## ???????????????????????????? | | ?????????????????! ?? ???????????????????????????? | | ????????????????# ?? #??????????????????????????? | | ????????????????# ??? ??????????????????????????? | | ???????????????? %??? ??????????????????????????? | | ???????????????? ??? ?????????????????????????? | | ???????????????? ???? ?????????????????????????? | | ??????????????? ???? ?????????????????????????? | | ??????????????? ?????? ????????????????????????? | | ??????????????? ??????"????????????????????????? | +----------------------------------------------------+ Best States ------------- Heat Dissipation 25 Energy Generation 12 Energy Capacity 265 Matter Stores 300 Matter Capacity 300 Sight Range 16 Terrain Scan Density 10 Armor Coverage 150 Evasion (%) 42 Recoil Reduction 2 Item Schematics ----------------- None Robot Schematics ------------------ None Fabricated ------------ Nothing Alien Tech Used ----------------- None Achievements -------------- None Challenges ------------ None Game ------ Seed DecoderCannonLaser Manual? 0 Play Time 00:20:46 Cumulative 390.3 hours Start 2019.11.07 @ 00:55:50 End 2019.11.07 @ 01:13:13 Sessions 1 Manual Loads 0 Difficulty Rogue Special Mode None Game No. 302 Rogue 294 Adventurer 4 Explorer 0 Win Type - Total 30 Types 24/2/1/1/2/0/0 Lore% 92 Gallery% 93 Achievement% 87 Wizard Run 0 Options --------- ASCII 0 Keyboard 1 Movement Vi Keybinds 0 Fullscreen 0 Font 16/Terminus Map View 76x50 Tactical HUD 1 Map Filters NONE Filters NONE Steam 1 RUN: 8269b5b6-1f67-46c2-be20-1af2281a9ae6